lending/lending_fUSD_20240206
["ID","MTS","AMOUNT","RATE_DAILY","PERIOD"]
[313381973,1707250234882,-468.71852303,0.00022999,2]
[313381974,1707250234892,-461819.10697149,0.00022999,2]
[313381975,1707250234900,-155.0,0.00022999,2]
[313381976,1707250234909,-155.44467428,0.00022999,2]
[313381977,1707250234918,-155.30836834,0.00022999,2]
[313381978,1707250234927,-162.65321079,0.00022999,2]
[313381979,1707250234936,-155.0,0.00022999,2]
[313381980,1707250234945,-155.6852055,0.00022999,2]
[313381981,1707250234956,-497.9111912,0.00022999,2]
[313381982,1707250234965,-155.82417674,0.00022999,2]
[313381983,1707250234974,-500.0,0.00022999,2]
[313381984,1707250234983,-500.0,0.00022999,2]
[313381985,1707250234992,-500.0,0.00022999,2]
[313381986,1707250235001,-500.0,0.00022999,2]
[313381987,1707250235010,-363.39639815,0.00022999,2]
[313381988,1707250235020,-500.0,0.00022999,2]
[313381989,1707250235030,-500.0,0.00022999,2]
[313381990,1707250235039,-500.0,0.00022999,2]
[313381991,1707250235049,-500.0,0.00022999,2]
[313381992,1707250235059,-500.0,0.00022999,2]
[313381993,1707250235068,-500.0,0.00022999,2]
[313381994,1707250235078,-500.0,0.00022999,2]
[313381995,1707250235087,-259.40017653,0.00022999,2]
[313381996,1707250235096,-500.0,0.00022999,2]
[313381997,1707250235106,-500.0,0.00022999,2]
[313381998,1707250235115,-500.0,0.00022999,2]
[313381999,1707250235125,-500.0,0.00022999,2]
[313382000,1707250235136,-500.0,0.00022999,2]
[313382001,1707250235146,-500.0,0.00022999,2]
[313382002,1707250235155,-500.0,0.00022999,2]
[313382003,1707250235165,-500.0,0.00022999,2]
[313382004,1707250235175,-500.0,0.00022999,2]
[313382005,1707250235185,-500.0,0.00022999,2]
[313382006,1707250235195,-500.0,0.00022999,2]
[313382007,1707250235206,-235.2796045,0.00022999,2]
[313382008,1707250235215,-500.0,0.00022999,2]
[313382009,1707250235224,-426.89737666,0.00022999,2]
[313382010,1707250235234,-350.28538625,0.00022999,2]
[313382011,1707250235244,-364.83940189,0.00022999,2]
[313382012,1707250235253,-500.0,0.00022999,2]
[313382013,1707250235263,-500.0,0.00022999,2]
[313382014,1707250235272,-544.83385216,0.00022999,2]
[313382015,1707250235282,-500.0,0.00022999,2]
[313382016,1707250235291,-242.58717215,0.00022999,2]
[313382017,1707250235301,-500.0,0.00022999,2]
[313382018,1707250235310,-500.0,0.00022999,2]
[313382019,1707250235320,-500.0,0.00022999,2]
[313382020,1707250235330,-500.0,0.00022999,2]
[313382021,1707250235340,-500.0,0.00022999,2]
[313382022,1707250235349,-500.0,0.00022999,2]
[313382023,1707250235359,-236.69344921,0.00022999,2]
[313382024,1707250235369,-500.0,0.00022999,2]
[313382025,1707250235379,-500.0,0.00022999,2]
[313382026,1707250235389,-500.0,0.00022999,2]
[313382027,1707250235398,-500.0,0.00022999,2]
[313382028,1707250235408,-500.0,0.00022999,2]
[313382029,1707250235417,-500.0,0.00022999,2]
[313382030,1707250235426,-500.0,0.00022999,2]
[313382031,1707250235437,-555.08561587,0.00022999,2]
[313382032,1707250235446,-128832.48180788,0.00023,2]
[313382033,1707250235460,-547.03,0.00023,2]
[313382034,1707250235472,-521.3907,0.00023,2]
[313382035,1707250235489,-1084.4100013,0.00023,2]
[313382036,1707250235500,-978.17434706,0.00023,2]
[313382037,1707250235512,-2134.15596,0.00023,2]
[313382038,1707250235523,-743876.88278818,0.00023,2]
[313382039,1707250235535,-95667.62906149,0.00023,2]
[313382040,1707250236565,-272.08,0.00023,2]
[313382044,1707250238356,-596.05964064,0.0002251,2]
[313382045,1707250238370,-445.03862055,0.0002251,2]
[313382046,1707250238380,-100.11524574,0.00022664,2]
[313382047,1707250238415,-49.88475426,0.00022664,2]
[313382048,1707250238424,-678.80971832,0.00023,2]
[313382049,1707250238436,-741.27723955,0.00023,2]
[313382050,1707250238447,-420.8888349,0.00023,2]
[313382051,1707250238460,-313.89851893,0.00023,2]
[313382052,1707250238587,-848.88551141,0.00023,2]
[313382053,1707250238813,-1059.53492,0.00023,2]
[313382061,1707250241027,-198.77131317,0.00022899,2]
[313382062,1707250241036,-1415.28112683,0.00023,2]
[313382063,1707250241088,-1022.29,0.00023,2]
[313382064,1707250241099,-263.755,0.00023,2]
[313382065,1707250241111,-1581.68935672,0.00023,2]
[313382066,1707250241214,-30466.73845238,0.00023,2]
[313382067,1707250241229,-3595.26159337,0.00023,2]
[313382068,1707250241868,-1497735.10094011,0.00023,2]
[313382069,1707250241877,-3107585.18374235,0.00023,2]
[313382070,1707250241887,-150.0,0.00023,2]
[313382071,1707250241896,-500.0,0.00023014,2]
[313382072,1707250241905,-153.82,0.00023034,2]
[313382073,1707250241915,-153.82,0.00023102,2]
[313382074,1707250241924,-200.0,0.00023128,2]
[313382075,1707250241933,-21477.00373731,0.0002313,2]
[313382076,1707250241943,-300.0,0.00023135,2]
[313382077,1707250241952,-196.35378324,0.00023359,2]
[313382078,1707250241962,-836.6,0.00023439,2]
[313382079,1707250241971,-201.89660623,0.00024,2]
[313382080,1707250241980,-488.88,0.00024006,2]
[313382082,1707250241990,-169.05,0.00024061,2]
[313382084,1707250241999,-564.44037602,0.000241,2]
[313382086,1707250242008,-5727.01681926,0.0002424,2]
[313382088,1707250242021,-166.75911386,0.000243,2]
[313382090,1707250242031,-1395.2,0.00024384,2]
[313382091,1707250242040,-2512.54,0.00024384,2]
[313382093,1707250242050,-515.37,0.00024404,2]
[313382095,1707250242059,-326.1490849,0.0002442,2]
[313382096,1707250242069,-300.0,0.00024505,2]
[313382098,1707250242078,-501.54598394,0.00024536,2]
[313382100,1707250242087,-150.0,0.0002464,2]
[313382102,1707250242096,-150.0,0.0002464,2]
[313382104,1707250242106,-150.0,0.0002464,2]
[313382105,1707250242115,-150.0,0.0002464,2]
[313382106,1707250242124,-150.0,0.0002464,2]
[313382107,1707250242134,-150.0,0.0002464,2]
[313382108,1707250242143,-150.0,0.0002464,2]
[313382109,1707250242153,-150.0,0.0002464,2]
[313382110,1707250242163,-150.0,0.0002464,2]
[313382111,1707250242173,-150.0,0.0002464,2]
[313382112,1707250242182,-250.0,0.00024658,2]
[313382113,1707250242192,-210.0,0.00024771,2]
[313382114,1707250242201,-434.49,0.00024844,2]
[313382115,1707250242212,-167.0,0.00024847,2]
[313382116,1707250242221,-488.88,0.00024855,2]
[313382117,1707250242231,-1063.342651,0.00024921,2]
[313382118,1707250242240,-937.18611161,0.00025,2]
[313382119,1707250242249,-1907.0887071,0.00025,2]
[313382120,1707250242259,-1589.9743297,0.00025,2]
[313382121,1707250242269,-350.0,0.00025,3]
[313382122,1707250242279,-1254.49179591,0.00025,2]
[313382123,1707250242288,-836.6,0.00025083,2]
[313382124,1707250242298,-169.05,0.00025155,2]
[313382125,1707250242307,-706.88,0.00025535,2]
[313382126,1707250242317,-5727.01681926,0.00025606,2]
[313382127,1707250242326,-488.88,0.00025704,2]
[313382128,1707250242336,-2793.0,0.00026,2]
[313382129,1707250242346,-150.0,0.00026079,2]
[313382130,1707250242356,-16544.0,0.000261,2]
[313382131,1707250242365,-170.23,0.00026114,2]
[313382132,1707250242375,-169.05,0.00026249,2]
[313382133,1707250242384,-182.37,0.00026471,2]
[313382134,1707250242394,-488.88,0.00026553,2]
[313382135,1707250242403,-515.37,0.00026668,2]
[313382136,1707250242412,-836.6,0.00026727,2]
[313382137,1707250242422,-167.0,0.00026741,2]
[313382138,1707250242432,-5727.01681926,0.00026972,2]
[313382139,1707250242441,-400.0,0.00027,3]
[313382140,1707250242450,-1063.342651,0.00027084,3]
[313382141,1707250242461,-150.0,0.00027397,2]
[313382142,1707250242471,-4948.93,0.00027397,2]
[313382143,1707250242480,-488.88,0.00027402,2]
[313382144,1707250242490,-4948.93,0.00027556,2]
[313382145,1707250242499,-434.49,0.00027605,2]
[313382146,1707250242508,-4948.93,0.00027714,2]
[313382147,1707250242518,-4948.93,0.00027872,2]
[313382148,1707250242527,-150.0,0.00027945,2]
[313382149,1707250242537,-150.0,0.00027999,2]
[313382150,1707250242546,-150.0,0.00027999,2]
[313382151,1707250242555,-132447.40165214,0.00028,2]
[313382152,1707250242564,-689.47,0.00028,2]
[313382153,1707250242573,-3451.69996504,0.00028,2]
[313382154,1707250242582,-599952.96577023,0.00028,2]
[313382155,1707250242591,-592.0,0.00028003,5]
[313382156,1707250242601,-4948.93,0.0002803,2]
[313382157,1707250242610,-4948.93,0.00028189,2]
[313382158,1707250242619,-488.88,0.00028251,2]
[313382159,1707250242628,-5727.01681926,0.00028338,2]
[313382160,1707250242638,-4948.93,0.00028347,2]
[313382161,1707250242647,-836.6,0.0002837,2]
[313382162,1707250242656,-706.88,0.00028372,2]
[313382163,1707250242669,-150.28666611,0.00028493,2]
[313382164,1707250242679,-150.1122847,0.000285,5]
[313382165,1707250242698,-4948.93,0.00028505,2]
[313382166,1707250242711,-4948.93,0.00028664,2]
[313382167,1707250242720,-4948.93,0.00028822,2]
[313382168,1707250242730,-515.37,0.00028932,2]
[313382169,1707250242740,-315.53098792,0.00029,2]
[313382170,1707250242750,-450.0,0.00029,3]
[313382171,1707250242759,-488.88,0.000291,2]
[313382172,1707250242769,-1063.342651,0.00029247,4]
[313382173,1707250242779,-366.23585006,0.000295,2]
[313382174,1707250242789,-390.41526854,0.00029599,2]
[313382175,1707250242798,-2321.70416571,0.00029599,2]
[313382176,1707250242808,-5727.01681926,0.00029704,2]
[313382177,1707250242817,-9678.59852311,0.0003,2]
[313382178,1707250242826,-585.09173402,0.0003,2]
[313382179,1707250242836,-155.0,0.0003,2]
[313382180,1707250242845,-2000.0,0.0003,2]
[313382181,1707250242854,-2000.0,0.0003,2]
[313382182,1707250242864,-2000.0,0.0003,2]
[313382183,1707250242873,-2000.0,0.0003,2]
[313382184,1707250242883,-2000.0,0.0003,2]
[313382185,1707250242892,-2000.0,0.0003,2]
[313382186,1707250242902,-836.6,0.00030014,2]
[313382187,1707250242911,-150.0,0.00030137,2]
[313382188,1707250243059,-434.49,0.00030365,2]
[313382189,1707250243068,-150.0,0.00030714,2]
[313382190,1707250243078,-500.0,0.00031,3]
[313382191,1707250243087,-5727.01681926,0.0003107,2]
[313382192,1707250243097,-515.37,0.00031196,2]
[313382193,1707250243106,-706.88,0.00031209,2]
[313382194,1707250243116,-150.0,0.00031291,2]
[313382195,1707250243125,-1063.342651,0.00031411,5]
[313382196,1707250243135,-180.0,0.00031644,2]
[313382197,1707250243144,-200.0,0.00031831,3]
[313382198,1707250243154,-150.0,0.00031867,2]
[313382199,1707250243164,-209.37882577,0.00032295,2]
[313382200,1707250243173,-5727.01681926,0.00032436,4]
[313382201,1707250243183,-150.0,0.00032444,2]
[313382202,1707250243193,-204.0,0.00032851,2]
[313382203,1707250243202,-550.0,0.00033,3]
[313382204,1707250243213,-150.0,0.00033021,2]
[313382205,1707250243222,-434.49,0.00033126,2]
[313382206,1707250243231,-359.51295822,0.00033374,2]
[313382207,1707250243241,-515.37,0.00033459,2]
[313382208,1707250243250,-1063.342651,0.00033574,6]
[313382209,1707250243259,-150.0,0.00033598,2]
[313382210,1707250243268,-204.0,0.00033649,3]
[313382211,1707250243278,-5727.01681926,0.00033802,6]
[313382212,1707250243287,-153.0983959,0.000339,2]
[313382213,1707250243296,-153.09839586,0.000339,2]
[313382214,1707250243305,-153.09839586,0.000339,2]
[313382215,1707250243315,-153.09839586,0.000339,2]
[313382216,1707250243324,-706.88,0.00034046,2]
[313382217,1707250243333,-150.0,0.00034175,2]
[313382218,1707250243342,-204.0,0.00034448,5]
[313382219,1707250243351,-150.0,0.00034548,10]
[313382220,1707250243360,-150.0,0.00034751,2]
[313382221,1707250243369,-200.0,0.00034869,3]
[313382222,1707250243378,-7999.99,0.000349,14]
[313382223,1707250243387,-588.04595916,0.000349,2]
[313382224,1707250243396,-588.04595914,0.000349,2]
[313382225,1707250243405,-588.04595914,0.000349,2]
[313382226,1707250243414,-588.04595914,0.000349,2]
[313382227,1707250243423,-588.04595914,0.000349,2]
[313382228,1707250243432,-588.04595914,0.000349,2]
[313382229,1707250243441,-588.04595914,0.000349,2]
[313382230,1707250243450,-588.04595914,0.000349,2]
[313382231,1707250243461,-300.0,0.000349,12]
[313382232,1707250243470,-155.0,0.00035,2]
[313382233,1707250243479,-600.0,0.00035,3]
[313382234,1707250243489,-162.32880039,0.00035,2]
[313382235,1707250243497,-25484.88711254,0.00035,2]
[313382236,1707250243507,-25484.88711254,0.00035,2]
[313382237,1707250243516,-5727.01681926,0.00035168,7]
[313382238,1707250243527,-204.0,0.00035246,7]
[313382239,1707250243536,-150.0,0.00035328,2]
[313382240,1707250243545,-1776.35,0.00035339,5]
[313382241,1707250243555,-1790.65,0.00035339,5]
[313382242,1707250243564,-588.04595914,0.0003539,2]
[313382243,1707250243573,-1395.2,0.00035616,2]
[313382244,1707250243583,-2512.54,0.00035616,2]
[313382245,1707250243592,-6576.0,0.00035616,2]
[313382246,1707250243601,-1802.86,0.00035622,5]
[313382247,1707250243610,-515.37,0.00035723,2]
[313382248,1707250243619,-1063.342651,0.00035737,7]
[313382249,1707250243629,-1815.84,0.00035902,5]
[313382250,1707250243638,-150.0,0.00035905,2]
[313382251,1707250243647,-204.0,0.00036045,8]
[313382252,1707250243657,-390.41526854,0.00036299,2]
[313382253,1707250243669,-2321.70416571,0.00036299,2]
[313382254,1707250243680,-1251.0,0.00036374,2]
[313382255,1707250243689,-1234.0,0.00036374,2]
[313382256,1707250243699,-286.75,0.00036374,2]
[313382257,1707250243709,-1002.0,0.00036374,2]
[313382258,1707250243718,-428.0,0.00036374,2]
[313382259,1707250243727,-236.0,0.00036374,2]
[313382260,1707250243737,-1943.0,0.00036374,2]
[313382261,1707250243748,-861.399,0.00036374,2]
[313382262,1707250243758,-317.0,0.00036374,2]
[313382263,1707250243767,-1138.0,0.00036374,2]
[313382264,1707250243776,-150.0,0.00036374,2]
[313382265,1707250243785,-342.0,0.00036374,2]
[313382266,1707250243794,-2284.0,0.00036419,2]
[313382267,1707250243803,-8142.0,0.00036419,2]
[313382268,1707250243812,-7395.0,0.00036419,2]
[313382269,1707250243822,-2919.0,0.00036419,2]
[313382270,1707250243832,-19798.0,0.00036419,2]
[313382271,1707250243841,-3043.7,0.00036419,2]
[313382272,1707250243850,-1034.0,0.00036419,2]
[313382273,1707250243859,-1785.62,0.00036472,5]
[313382274,1707250243868,-150.0,0.00036482,2]
[313382275,1707250243877,-5727.01681926,0.00036534,9]
[313382276,1707250243887,-204.0,0.00036843,10]
[313382277,1707250243896,-6576.0,0.00036934,2]
[313382278,1707250243905,-588.04595914,0.00036969,2]
[313382279,1707250243914,-650.0,0.00037,3]
[313382280,1707250243923,-150.0,0.00037059,2]
[313382281,1707250243933,-1000.0,0.000373,2]
[313382282,1707250243943,-1000.0,0.000373,2]
[313382283,1707250243954,-151.0,0.00037504,120]
[313382284,1707250243963,-150.0,0.00037635,2]
[313382285,1707250243973,-204.0,0.00037642,12]
[313382286,1707250243983,-150.0,0.00037899,2]
[313382287,1707250243994,-150.0,0.00037899,2]
[313382288,1707250244003,-4505.48925453,0.000379,7]
[313382289,1707250244012,-5727.01681926,0.000379,11]
[313382290,1707250244021,-648275.024498,0.000379,3]
[313382291,1707250244030,-1070.9365,0.000379,30]
[313382292,1707250244039,-1063.342651,0.000379,8]
[313382293,1707250244048,-515.37,0.00037987,2]
[313382294,1707250244057,-150.0,0.00037999,2]
[313382295,1707250244066,-150.0,0.00037999,2]
[313382296,1707250244075,-150.0,0.00037999,2]
[313382297,1707250244084,-150.0,0.00037999,2]
[313382298,1707250244093,-10467.96263616,0.00038,3]
[313382299,1707250244102,-1122359.08136728,0.00038,2]
[313382300,1707250244111,-874364.11496366,0.00038,2]
[313382301,1707250244120,-150.0,0.00038212,2]
[313382302,1707250244130,-6576.0,0.00038252,2]
[313382303,1707250244139,-151.0,0.0003827,30]
[313382304,1707250244148,-150.03,0.00038356,2]
[313382305,1707250244157,-150.0,0.00038374,2]
[313382306,1707250244166,-150.0,0.00038381,2]
[313382307,1707250244175,-495.331,0.00038439,2]
[313382308,1707250244185,-220.545,0.00038439,2]
[313382309,1707250244194,-840.0,0.00038439,2]
[313382310,1707250244203,-1063.145,0.00038439,2]
[313382311,1707250244213,-951.43,0.00038439,2]
[313382312,1707250244222,-2906.0,0.00038439,2]
[313382313,1707250244231,-204.0,0.0003844,13]
[313382314,1707250244240,-150.0,0.00038445,2]
[313382315,1707250244249,-150.0,0.00038513,2]
[313382316,1707250244258,-588.04595914,0.00038547,2]
[313382317,1707250244267,-150.0,0.00038554,2]
[313382318,1707250244276,-150.0,0.00038577,2]
[313382319,1707250244286,-150.0,0.00038657,2]
[313382320,1707250244295,-150.0,0.00038668,2]
[313382321,1707250244304,-1500.0,0.00038673,2]
[313382322,1707250244314,-227.6,0.000387,7]
[313382323,1707250244323,-150.0,0.00038702,2]
[313382324,1707250244332,-150.0,0.00038709,2]
[313382325,1707250244341,-150.0,0.00038712,2]
[313382326,1707250244350,-150.0,0.00038747,2]
[313382327,1707250244359,-300.0,0.00038749,2]
[313382328,1707250244368,-150.0,0.00038789,2]
[313382329,1707250244377,-150.0,0.00038842,2]
[313382330,1707250244386,-150.0,0.00038843,2]
[313382331,1707250244395,-150.0,0.00038869,2]
[313382332,1707250244404,-739.32476388,0.0003888,2]
[313382333,1707250244413,-739.32476388,0.0003888,2]
[313382334,1707250244422,-739.32476388,0.0003888,2]
[313382335,1707250244431,-739.32476388,0.0003888,2]
[313382336,1707250244440,-739.32476388,0.0003888,2]
[313382337,1707250244449,-739.32476388,0.0003888,2]
[313382338,1707250244460,-739.32476388,0.0003888,2]
[313382339,1707250244469,-739.32476388,0.0003888,2]
[313382340,1707250244478,-739.32476388,0.0003888,2]
[313382341,1707250244487,-150.0,0.00038888,2]
[313382342,1707250244496,-187.98170825,0.000389,9]
[313382343,1707250244505,-150.0,0.00038905,2]
[313382344,1707250244515,-800.0,0.00038946,10]
[313382345,1707250244525,-150.0,0.00038955,2]
[313382346,1707250244534,-150.0,0.00038979,2]
[313382347,1707250244543,-282.99585299,0.0003898,2]
[313382348,1707250244553,-150.0,0.00038988,2]
[313382349,1707250244562,-150.0,0.00038999,2]
[313382350,1707250244574,-1433.61374358,0.00039,2]
[313382351,1707250244583,-150.0,0.00039,2]
[313382352,1707250244592,-700.0,0.00039,3]
[313382353,1707250244601,-150.0,0.00039006,2]
[313382354,1707250244610,-150.0,0.00039007,2]
[313382355,1707250244619,-150.0,0.00039033,2]
[313382356,1707250244628,-150.0,0.00039033,2]
[313382357,1707250244637,-150.0,0.00039034,2]
[313382358,1707250244646,-150.0,0.00039043,2]
[313382359,1707250244655,-150.0,0.00039046,2]
[313382360,1707250244665,-151.0,0.00039051,7]
[313382361,1707250244679,-150.0,0.00039051,2]
[313382362,1707250244688,-150.0,0.00039059,2]
[313382363,1707250244697,-1500.0,0.00039062,2]
[313382364,1707250244707,-150.0,0.00039066,2]
[313382365,1707250244717,-150.0,0.00039067,2]
[313382366,1707250244725,-150.0,0.00039082,2]
[313382367,1707250244734,-150.0,0.00039085,2]
[313382368,1707250244744,-154.46,0.000391,3]
[313382369,1707250244753,-150.0,0.00039107,2]
[313382370,1707250244763,-150.0,0.00039108,2]
[313382371,1707250244772,-150.0,0.0003911,2]
[313382372,1707250244780,-150.0,0.00039112,2]
[313382373,1707250244789,-1500.0,0.00039113,2]
[313382374,1707250244798,-1500.0,0.00039115,2]
[313382375,1707250244807,-163.37189015,0.00039133,2]
[313382376,1707250244816,-150.0,0.00039147,2]
[313382377,1707250244825,-150.0,0.00039152,2]
[313382378,1707250244834,-150.0,0.00039155,2]
[313382379,1707250244843,-150.0,0.00039195,2]
[313382380,1707250244853,-150.0,0.00039195,2]
[313382381,1707250244862,-150.0,0.00039196,2]
[313382382,1707250244871,-150.0,0.00039197,2]
[313382383,1707250244880,-500.0,0.000392,14]
[313382384,1707250244889,-150.0,0.000392,2]
[313382385,1707250244899,-1500.0,0.000392,29]
[313382386,1707250244908,-1500.0,0.00039205,2]
[313382387,1707250244917,-150.0,0.00039211,2]
[313382388,1707250244926,-150.0,0.00039231,2]
[313382389,1707250244935,-150.0,0.00039232,2]
[313382390,1707250244944,-204.0,0.00039239,15]
[313382391,1707250244953,-336.24697309,0.00039246,2]
[313382392,1707250244963,-150.0,0.00039248,2]
[313382393,1707250244972,-150.0,0.0003925,2]
[313382394,1707250244981,-150.0,0.00039257,2]
[313382395,1707250244990,-3309.97832316,0.00039259,2]
[313382396,1707250245087,-150.01,0.00039259,2]
[313382397,1707250245096,-398.97,0.0003926,2]
[313382398,1707250245105,-1971.66420128,0.00039264,2]
[313382399,1707250245115,-3498.88426356,0.00039264,4]
[313382400,1707250245123,-155.0,0.00039264,4]
[313382401,1707250245133,-586.0194991,0.00039264,2]
[313382402,1707250245142,-5639.60961651,0.00039264,2]
[313382403,1707250245151,-686.92646875,0.00039264,4]
[313382404,1707250245160,-200.0,0.00039264,2]
[313382405,1707250245170,-1000.0,0.000393,15]
[313382406,1707250245179,-150.0,0.000393,7]
[313382407,1707250245188,-4793.206696,0.00039339,2]
[313382408,1707250245198,-150.0,0.00039366,2]
[313382409,1707250245207,-364.197,0.00039374,2]
[313382410,1707250245216,-1232.0,0.00039374,2]
[313382411,1707250245225,-998.0,0.00039374,2]
[313382412,1707250245234,-426.0,0.00039374,2]
[313382413,1707250245243,-236.0,0.00039374,2]
[313382414,1707250245252,-1765.817,0.00039374,2]
[313382415,1707250245262,-150.0,0.00039374,2]
[313382416,1707250245271,-342.0,0.00039374,2]
[313382417,1707250245280,-2280.0,0.00039419,2]
[313382418,1707250245289,-8142.0,0.00039419,2]
[313382419,1707250245298,-7377.0,0.00039419,2]
[313382420,1707250245308,-2913.0,0.00039419,2]
[313382421,1707250245318,-19760.0,0.00039419,2]
[313382422,1707250245327,-1020.0,0.00039419,2]
[313382423,1707250245337,-6576.0,0.0003957,2]
[313382424,1707250245348,-500.0,0.000396,7]
[313382425,1707250245358,-4241.5099709,0.00039838,2]
[313382426,1707250245368,-151.0,0.00039848,4]
[313382427,1707250245378,-2211.35393856,0.00039892,6]
[313382428,1707250245387,-1270.44043397,0.00039892,6]
[313382429,1707250245397,-265.52958253,0.00039892,6]
[313382430,1707250245406,-538.21624141,0.00039892,6]
[313382432,1707250245416,-1482.51754102,0.00039892,6]
[313382433,1707250245425,-270.46659069,0.00039892,6]
[313382434,1707250245434,-317.25359979,0.00039892,6]
[313382435,1707250245443,-564.31866072,0.00039892,6]
[313382436,1707250245453,-451.72980921,0.00039892,6]
[313382437,1707250245463,-300.0,0.000399,14]
[313382438,1707250245473,-739.32476388,0.000399,2]
[313382439,1707250245482,-150.0,0.00039942,2]
[313382440,1707250245491,-3689.8132457,0.00039946,2]
[313382441,1707250245501,-3138.1165206,0.00039946,2]
[313382442,1707250245510,-2586.4197955,0.00039946,2]
[313382443,1707250245520,-2034.7230704,0.00039946,2]
[313382444,1707250245529,-150.03,0.00039954,2]
[313382445,1707250245538,-215.35384188,0.00039958,2]
[313382446,1707250245547,-321.43184589,0.00039967,6]
[313382447,1707250245556,-50840.0472813,0.00039973,2]
[313382448,1707250245565,-44227.2401011,0.00039973,2]
[313382450,1707250245575,-37614.4329209,0.00039973,2]
[313382452,1707250245583,-31001.6257407,0.00039973,2]
[313382454,1707250245593,-24388.8185605,0.00039973,2]
[313382455,1707250245602,-2743.8329737,0.00039973,2]
[313382456,1707250245611,-2623.461541,0.00039973,2]
[313382457,1707250245620,-2503.0901083,0.00039973,2]
[313382458,1707250245629,-2382.7186755,0.00039973,2]
[313382459,1707250245637,-2262.3472428,0.00039973,2]
[313382461,1707250245646,-286.73899009,0.00039998,4]
[313382463,1707250245655,-376.90845451,0.00039998,4]
[313382465,1707250245664,-366.02277432,0.00039998,4]
[313382467,1707250245675,-699.81053348,0.00039998,4]
[313382469,1707250245684,-155.7166928,0.00039998,4]
[313382471,1707250245694,-228.5814212,0.00039998,4]
[313382472,1707250245704,-302.89880783,0.00039998,4]
[313382473,1707250245714,-183.60060641,0.00039998,4]
[313382474,1707250245723,-155.36341877,0.00039998,4]
[313382475,1707250245733,-155.3355389,0.00039999,4]
[313382476,1707250245742,-2996.65687599,0.00039999,4]
[313382477,1707250245753,-150.0,0.00039999,2]
[313382478,1707250245764,-222.44069624,0.00039999,2]
[313382479,1707250245774,-150.0,0.00039999,2]
[313382480,1707250245783,-150.0,0.00039999,2]
[313382481,1707250245792,-150.0,0.00039999,2]
[313382482,1707250245801,-150.0,0.00039999,2]
[313382483,1707250245810,-150.0,0.00039999,2]
[313382484,1707250245820,-150.0,0.00039999,2]
[313382485,1707250245830,-100000.0,0.0004,20]
[313382486,1707250245839,-224.89604689,0.0004,2]
[313382487,1707250245848,-191.25630105,0.0004,2]
[313382488,1707250245858,-19303.61779843,0.0004,4]
[313382489,1707250245867,-12027.6369461,0.0004,7]
[313382490,1707250245877,-814.0,0.0004,2]
[313382491,1707250245887,-180.97162978,0.0004,2]
[313382492,1707250245897,-6874596.51672425,0.0004,7]
[313382493,1707250245906,-255.0,0.0004,12]
[313382494,1707250245917,-255.0,0.0004,12]
[313382495,1707250245927,-500.0,0.0004,2]
[313382496,1707250245937,-1000.0,0.0004,10]
[313382497,1707250245946,-270.0,0.0004,12]
[313382498,1707250245955,-162.32880039,0.0004,2]
[313382499,1707250245966,-300.0,0.0004,30]
[313382502,1707250245975,-25484.88711254,0.0004,2]
[313382505,1707250245984,-204.0,0.00040037,17]
[313382507,1707250245992,-1060.97461627,0.00040122,6]
[313382510,1707250246001,-588.04595914,0.00040126,5]